fUSD/lending_fUSD_20250503
["ID","MTS","AMOUNT","RATE_DAILY","PERIOD"]
[359709624,1746270638631,-5208.60511293,0.00019664,2]
[359709626,1746270638641,-757.30140233,0.00019669,2]
[359709629,1746270638650,-5208.60511293,0.00019694,2]
[359709632,1746270638659,-757.30140233,0.00019698,2]
[359709635,1746270638669,-1000.0,0.000197,2]
[359709638,1746270638678,-5208.60511293,0.00019723,2]
[359709641,1746270638687,-151.0,0.00019724,2]
[359709643,1746270638697,-193.73484558,0.00019724,2]
[359709646,1746270638705,-129.15599901,0.00019724,2]
[359709651,1746270638742,-539.49585856,0.00019724,2]
[359709653,1746270638751,-757.30140233,0.00019727,2]
[359709655,1746270638761,-500.0,0.00019732,2]
[359709657,1746270638770,-500.0,0.00019732,2]
[359709659,1746270638780,-500.0,0.00019732,2]
[359709661,1746270638790,-500.0,0.00019732,2]
[359709663,1746270638799,-500.0,0.00019732,2]
[359709665,1746270638809,-500.0,0.00019732,2]
[359709667,1746270638818,-500.0,0.00019732,2]
[359709668,1746270638827,-500.0,0.00019732,2]
[359709669,1746270638837,-500.0,0.00019732,2]
[359709670,1746270638846,-500.0,0.00019732,2]
[359709671,1746270638857,-500.0,0.00019732,2]
[359709673,1746270638866,-500.0,0.00019732,2]
[359709675,1746270638875,-500.0,0.00019732,2]
[359709677,1746270638884,-500.0,0.00019732,2]
[359709679,1746270638893,-500.0,0.00019732,2]
[359709681,1746270638903,-500.0,0.00019732,2]
[359709683,1746270638912,-500.0,0.00019732,2]
[359709685,1746270638922,-500.0,0.00019732,2]
[359709687,1746270638931,-500.0,0.00019732,2]
[359709689,1746270638941,-500.0,0.00019732,2]
[359709691,1746270638950,-500.0,0.00019732,2]
[359709693,1746270638959,-500.0,0.00019732,2]
[359709695,1746270638968,-500.0,0.00019732,2]
[359709697,1746270638977,-500.0,0.00019732,2]
[359709699,1746270638988,-500.0,0.00019732,2]
[359709701,1746270638997,-500.0,0.00019732,2]
[359709703,1746270639007,-500.0,0.00019732,2]
[359709706,1746270639016,-500.0,0.00019732,2]
[359709708,1746270639026,-500.0,0.00019732,2]
[359709709,1746270639035,-640.66122627,0.00019732,2]
[359709712,1746270639045,-500.0,0.00019732,2]
[359709713,1746270639054,-500.0,0.00019732,2]
[359709715,1746270639063,-500.0,0.00019732,2]
[359709717,1746270639074,-500.0,0.00019732,2]
[359709720,1746270639083,-500.0,0.00019732,2]
[359709721,1746270639093,-500.0,0.00019732,2]
[359709723,1746270639102,-500.0,0.00019732,2]
[359709726,1746270639111,-500.0,0.00019732,2]
[359709728,1746270639121,-500.0,0.00019732,2]
[359709730,1746270639130,-500.0,0.00019732,2]
[359709731,1746270639140,-500.0,0.00019732,2]
[359709733,1746270639149,-500.0,0.00019732,2]
[359709735,1746270639158,-500.0,0.00019732,2]
[359709738,1746270639168,-500.0,0.00019732,2]
[359709739,1746270639176,-500.0,0.00019732,2]
[359709741,1746270639186,-500.0,0.00019732,2]
[359709743,1746270639195,-500.0,0.00019732,2]
[359709745,1746270639204,-186.165555,0.00019739,2]
[359709747,1746270639213,-450.0,0.00019739,2]
[359709749,1746270639222,-450.0,0.00019739,2]
[359709751,1746270639232,-450.0,0.00019739,2]
[359709753,1746270639242,-450.0,0.00019739,2]
[359709756,1746270639253,-450.0,0.00019739,2]
[359709758,1746270639263,-450.0,0.00019739,2]
[359709760,1746270639273,-500.0,0.00019739,2]
[359709762,1746270639282,-450.0,0.00019739,2]
[359709764,1746270639291,-450.0,0.00019739,2]
[359709765,1746270639300,-1070.52,0.00019739,2]
[359709767,1746270639310,-450.0,0.00019739,2]
[359709769,1746270639319,-450.0,0.00019739,2]
[359709771,1746270639328,-450.0,0.00019739,2]
[359709773,1746270639338,-450.0,0.00019739,2]
[359709775,1746270639348,-450.0,0.00019739,2]
[359709777,1746270639357,-450.0,0.00019739,2]
[359709779,1746270639367,-450.0,0.00019739,2]
[359709781,1746270639375,-450.0,0.00019739,2]
[359709783,1746270639385,-559.26,0.00019739,2]
[359709785,1746270639394,-579.91,0.00019739,2]
[359709787,1746270639403,-450.0,0.00019739,2]
[359709789,1746270639414,-450.0,0.00019739,2]
[359709791,1746270639423,-1014.88,0.00019739,2]
[359709793,1746270639433,-488.81429643,0.00019739,2]
[359709795,1746270639442,-450.0,0.00019739,2]
[359709797,1746270639451,-3527.25,0.00019739,2]
[359709799,1746270639460,-450.0,0.00019739,2]
[359709801,1746270639469,-1252.33,0.00019739,2]
[359709803,1746270639479,-867.09,0.00019739,2]
[359709805,1746270639489,-563.36,0.00019739,2]
[359709807,1746270639499,-450.0,0.00019739,2]
[359709809,1746270639508,-450.0,0.00019739,2]
[359709811,1746270639518,-450.0,0.00019739,2]
[359709813,1746270639527,-450.0,0.00019739,2]
[359709815,1746270639536,-450.0,0.00019739,2]
[359709817,1746270639546,-450.0,0.00019739,2]
[359709819,1746270639556,-450.0,0.00019739,2]
[359709821,1746270639566,-450.0,0.00019739,2]
[359709823,1746270639575,-1757.85,0.00019739,2]
[359709825,1746270639585,-450.0,0.00019739,2]
[359709827,1746270639595,-450.0,0.00019739,2]
[359709829,1746270639604,-450.0,0.00019739,2]
[359709831,1746270639613,-450.0,0.00019739,2]
[359709833,1746270639622,-450.0,0.00019739,2]
[359709835,1746270639631,-450.0,0.00019739,2]
[359709837,1746270639641,-649.42,0.00019739,2]
[359709839,1746270639650,-450.0,0.00019739,2]
[359709841,1746270639659,-5354.91,0.00019739,2]
[359709843,1746270639668,-4185.64,0.00019739,2]
[359709845,1746270639678,-450.0,0.00019739,2]
[359709847,1746270639687,-450.0,0.00019739,2]
[359709849,1746270639696,-450.0,0.00019739,2]
[359709851,1746270639706,-450.0,0.00019739,2]
[359709853,1746270639716,-450.0,0.0001974,2]
[359709855,1746270639725,-631.76,0.0001974,2]
[359709857,1746270639735,-450.0,0.0001974,2]
[359709860,1746270639744,-450.0,0.0001974,2]
[359709862,1746270639754,-450.0,0.0001974,2]
[359709864,1746270639763,-429.28,0.0001974,2]
[359709866,1746270639772,-450.0,0.0001974,2]
[359709868,1746270639782,-450.0,0.0001974,2]
[359709870,1746270639792,-450.0,0.0001974,2]
[359709872,1746270639801,-450.0,0.0001974,2]
[359709873,1746270639811,-450.0,0.0001974,2]
[359709874,1746270639823,-450.0,0.0001974,2]
[359709875,1746270639833,-450.0,0.0001974,2]
[359709877,1746270639842,-450.0,0.0001974,2]
[359709878,1746270639851,-450.0,0.0001974,2]
[359709880,1746270639861,-450.0,0.0001974,2]
[359709881,1746270639870,-450.0,0.0001974,2]
[359709882,1746270639880,-450.0,0.0001974,2]
[359709883,1746270639889,-329.29,0.0001974,2]
[359709884,1746270639898,-956.82,0.0001974,2]
[359709885,1746270639907,-450.0,0.0001974,2]
[359709886,1746270639916,-450.0,0.0001974,2]
[359709887,1746270639925,-450.0,0.0001974,2]
[359709888,1746270639934,-641.52,0.0001974,2]
[359709889,1746270639943,-450.0,0.0001974,2]
[359709890,1746270639952,-450.0,0.0001974,2]
[359709891,1746270639961,-528.63,0.0001974,2]
[359709893,1746270639971,-450.0,0.0001974,2]
[359709895,1746270639981,-450.0,0.0001974,2]
[359709896,1746270639990,-450.0,0.0001974,2]
[359709898,1746270639999,-450.0,0.0001974,2]
[359709901,1746270640010,-821.47,0.0001974,2]
[359709903,1746270640019,-821.47,0.0001974,2]
[359709905,1746270640029,-320.68280887,0.0001974,2]
[359709907,1746270640038,-450.0,0.0001974,2]
[359709908,1746270640049,-307.88,0.0001974,2]
[359709910,1746270640058,-450.0,0.0001974,2]
[359709912,1746270640067,-450.0,0.0001974,2]
[359709914,1746270640076,-450.0,0.0001974,2]
[359709916,1746270640086,-450.0,0.0001974,2]
[359709918,1746270640095,-450.0,0.0001974,2]
[359709920,1746270640104,-450.0,0.0001974,2]
[359709922,1746270640114,-450.0,0.0001974,2]
[359709924,1746270640124,-450.0,0.0001974,2]
[359709926,1746270640134,-450.0,0.0001974,2]
[359709928,1746270640143,-450.0,0.0001974,2]
[359709930,1746270640152,-450.0,0.0001974,2]
[359709932,1746270640161,-450.0,0.0001974,2]
[359709934,1746270640171,-450.0,0.0001974,2]
[359709936,1746270640180,-450.0,0.0001974,2]
[359709938,1746270640189,-467.86107191,0.0001974,2]
[359709940,1746270640199,-500.0,0.0001974,2]
[359709942,1746270640208,-508.65,0.0001974,2]
[359709944,1746270640217,-450.0,0.0001974,2]
[359709946,1746270640227,-562.78124099,0.0001974,2]
[359709948,1746270640235,-450.0,0.0001974,2]
[359709950,1746270640244,-450.0,0.0001974,2]
[359709952,1746270640254,-450.0,0.0001974,2]
[359709954,1746270640266,-450.0,0.0001974,2]
[359709956,1746270640275,-588.85,0.0001974,2]
[359709958,1746270640284,-496.91925382,0.0001974,2]
[359709960,1746270640293,-311.78,0.0001974,2]
[359709962,1746270640303,-450.0,0.0001974,2]
[359709964,1746270640311,-450.0,0.0001974,2]
[359709966,1746270640321,-450.0,0.0001974,2]
[359709968,1746270640330,-450.0,0.0001974,2]
[359709970,1746270640339,-450.0,0.0001974,2]
[359709972,1746270640348,-450.0,0.0001974,2]
[359709974,1746270640358,-559.50863215,0.0001974,2]
[359709976,1746270640367,-450.0,0.0001974,2]
[359709978,1746270640377,-450.0,0.0001974,2]
[359709980,1746270640386,-450.0,0.0001974,2]
[359709982,1746270640395,-450.0,0.0001974,2]
[359709984,1746270640405,-450.0,0.0001974,2]
[359709986,1746270640414,-450.0,0.0001974,2]
[359709988,1746270640423,-450.0,0.0001974,2]
[359709990,1746270640433,-450.0,0.0001974,2]
[359709992,1746270640442,-517.82173724,0.0001974,2]
[359709994,1746270640451,-500.0,0.0001974,2]
[359709996,1746270640461,-500.0,0.0001974,2]
[359709998,1746270640471,-450.0,0.0001974,2]
[359710000,1746270640480,-450.0,0.0001974,2]
[359710002,1746270640490,-450.0,0.0001974,2]
[359710004,1746270640499,-1000.0,0.0001974,2]
[359710006,1746270640509,-450.0,0.0001974,2]
[359710008,1746270640518,-450.0,0.0001974,2]
[359710010,1746270640528,-450.0,0.0001974,2]
[359710012,1746270640538,-450.0,0.0001974,2]
[359710014,1746270640548,-463.08530949,0.0001974,2]
[359710016,1746270640557,-450.0,0.0001974,2]
[359710018,1746270640567,-450.0,0.0001974,2]
[359710020,1746270640576,-450.0,0.0001974,2]
[359710022,1746270640585,-486.5,0.0001974,2]
[359710024,1746270640595,-450.0,0.0001974,2]
[359710026,1746270640604,-450.0,0.0001974,2]
[359710028,1746270640613,-450.0,0.0001974,2]
[359710030,1746270640623,-450.0,0.0001974,2]
[359710032,1746270640632,-203.9857217,0.0001974,2]
[359710034,1746270640641,-450.0,0.0001974,2]
[359710035,1746270640651,-400.54210202,0.0001974,2]
[359710037,1746270640660,-485.71837721,0.0001974,2]
[359710039,1746270640669,-450.0,0.0001974,2]
[359710041,1746270640679,-450.0,0.0001974,2]
[359710043,1746270640688,-727.16,0.0001974,2]
[359710045,1746270640697,-450.0,0.0001974,2]
[359710047,1746270640707,-450.0,0.0001974,2]
[359710049,1746270640716,-791.3,0.0001974,2]
[359710051,1746270640726,-450.0,0.0001974,2]
[359710053,1746270640735,-450.0,0.0001974,2]
[359710055,1746270640745,-450.0,0.0001974,2]
[359710057,1746270640754,-450.0,0.0001974,2]
[359710059,1746270640764,-3034.53,0.0001974,2]
[359710061,1746270640773,-450.0,0.0001974,2]
[359710063,1746270640782,-450.0,0.0001974,2]
[359710065,1746270640792,-504.1,0.0001974,2]
[359710067,1746270640801,-450.0,0.0001974,2]
[359710069,1746270640811,-450.0,0.0001974,2]
[359710071,1746270640820,-531.49299216,0.0001974,2]
[359710073,1746270640830,-450.0,0.0001974,2]
[359710075,1746270640839,-506.64,0.0001974,2]
[359710077,1746270640848,-450.0,0.0001974,2]
[359710079,1746270640857,-450.0,0.0001974,2]
[359710081,1746270640867,-450.0,0.0001974,2]
[359710083,1746270640876,-450.0,0.0001974,2]
[359710085,1746270640885,-450.0,0.0001974,2]
[359710087,1746270640894,-450.0,0.0001974,2]
[359710089,1746270640903,-450.0,0.0001974,2]
[359710091,1746270640913,-450.0,0.0001974,2]
[359710093,1746270640922,-450.0,0.0001974,2]
[359710095,1746270640931,-450.0,0.0001974,2]
[359710097,1746270640940,-500.0,0.0001974,2]
[359710099,1746270640949,-450.0,0.0001974,2]
[359710101,1746270640958,-450.0,0.0001974,2]
[359710103,1746270640967,-544.35,0.0001974,2]
[359710105,1746270640976,-450.0,0.0001974,2]
[359710107,1746270640985,-450.0,0.0001974,2]
[359710109,1746270640994,-480.39,0.0001974,2]
[359710111,1746270641003,-450.0,0.0001974,2]
[359710113,1746270641013,-610.09,0.0001974,2]
[359710115,1746270641022,-450.0,0.0001974,2]
[359710117,1746270641031,-450.0,0.0001974,2]
[359710119,1746270641040,-450.0,0.0001974,2]
[359710121,1746270641050,-689.32,0.0001974,2]
[359710123,1746270641060,-450.0,0.0001974,2]
[359710125,1746270641069,-450.0,0.0001974,2]
[359710127,1746270641078,-491.25,0.0001974,2]
[359710129,1746270641087,-677.36,0.0001974,2]
[359710131,1746270641096,-450.0,0.0001974,2]
[359710133,1746270641105,-450.0,0.0001974,2]
[359710135,1746270641115,-450.0,0.0001974,2]
[359710137,1746270641124,-500.0,0.0001974,2]
[359710139,1746270641133,-826.09,0.0001974,2]
[359710141,1746270641142,-560.47449631,0.0001974,2]
[359710143,1746270641151,-450.0,0.0001974,2]
[359710145,1746270641161,-513.8096182,0.0001974,2]
[359710147,1746270641170,-450.0,0.0001974,2]
[359710149,1746270641180,-450.0,0.0001974,2]
[359710151,1746270641189,-450.0,0.0001974,2]
[359710153,1746270641198,-450.0,0.0001974,2]
[359710155,1746270641207,-450.0,0.0001974,2]
[359710157,1746270641217,-908.99,0.0001974,2]
[359710159,1746270641226,-450.0,0.0001974,2]
[359710161,1746270641235,-259.17221031,0.0001974,2]
[359710163,1746270641245,-546.89,0.0001974,2]
[359710165,1746270641254,-450.0,0.0001974,2]
[359710167,1746270641267,-450.0,0.0001974,2]
[359710169,1746270641276,-450.0,0.0001974,2]
[359710171,1746270641286,-1075.13,0.0001974,2]
[359710173,1746270641296,-506.5733682,0.0001974,2]
[359710175,1746270641306,-453.64158599,0.0001974,2]
[359710177,1746270641316,-450.0,0.0001974,2]
[359710179,1746270641326,-4439.98,0.0001974,2]
[359710181,1746270641336,-759.01,0.0001974,2]
[359710183,1746270641345,-450.0,0.0001974,2]
[359710185,1746270641356,-514.44963635,0.0001974,2]
[359710187,1746270641364,-450.0,0.0001974,2]
[359710189,1746270641374,-450.0,0.0001974,2]
[359710191,1746270641384,-14.51635601,0.0001974,2]
[359710194,1746270641409,-435.48364399,0.0001974,2]
[359710195,1746270641420,-431.51635601,0.0001974,2]
[359710196,1746270641431,-18.48364399,0.0001974,2]
[359710198,1746270641440,-450.0,0.0001974,2]
[359710199,1746270641449,-2041.59884185,0.0001974,2]
[359710201,1746270641461,-199.12115815,0.0001974,2]
[359710202,1746270641470,-999.0,0.0001974,2]
[359710204,1746270641479,-524.4,0.0001974,2]
[359710206,1746270641490,-450.0,0.0001974,2]
[359710207,1746270641499,-450.0,0.0001974,2]
[359710208,1746270641508,-363.04831024,0.0001974,2]
[359710209,1746270641524,-338.88168976,0.0001974,2]
[359710210,1746270641532,-450.0,0.0001974,2]
[359710211,1746270641541,-450.0,0.0001974,2]
[359710212,1746270641551,-450.0,0.0001974,2]
[359710213,1746270641560,-450.0,0.0001974,2]
[359710214,1746270641569,-5061.79,0.0001974,2]
[359710215,1746270641580,-450.0,0.0001974,2]
[359710216,1746270641589,-450.0,0.0001974,2]
[359710217,1746270641599,-450.0,0.0001974,2]
[359710218,1746270641610,-709.53,0.0001974,2]
[359710219,1746270641619,-450.0,0.0001974,2]
[359710220,1746270641628,-4517.43,0.0001974,2]
[359710221,1746270641638,-450.0,0.0001974,2]
[359710222,1746270641647,-454.42074603,0.0001974,2]
[359710223,1746270641656,-450.0,0.0001974,2]
[359710224,1746270641665,-450.0,0.0001974,2]
[359710225,1746270641674,-450.0,0.0001974,2]
[359710226,1746270641683,-450.0,0.0001974,2]
[359710227,1746270641692,-450.0,0.0001974,2]
[359710228,1746270641702,-691.15,0.0001974,2]
[359710229,1746270641712,-450.0,0.0001974,2]
[359710230,1746270641721,-450.0,0.0001974,2]
[359710231,1746270641730,-468.95,0.0001974,2]
[359710232,1746270641740,-300.94861633,0.0001974,2]
[359710233,1746270642330,-149.05138367,0.0001974,2]
[359710234,1746270642341,-455.73,0.0001974,2]
[359710235,1746270642351,-450.0,0.0001974,2]
[359710236,1746270642361,-1583.88,0.0001974,2]
[359710237,1746270642370,-450.0,0.0001974,2]
[359710238,1746270642379,-4610.8,0.0001974,2]
[359710239,1746270642388,-892.76,0.0001974,2]
[359710240,1746270642398,-450.0,0.0001974,2]
[359710241,1746270642407,-450.0,0.0001974,2]
[359710242,1746270642416,-450.0,0.0001974,2]
[359710243,1746270642425,-82966.61,0.0001974,2]
[359710244,1746270642435,-450.0,0.0001974,2]
[359710245,1746270642444,-450.0,0.0001974,2]
[359710246,1746270642456,-450.0,0.0001974,2]
[359710247,1746270642466,-450.0,0.0001974,2]
[359710248,1746270642475,-450.0,0.0001974,2]
[359710249,1746270642484,-450.0,0.0001974,2]
[359710250,1746270642493,-450.0,0.0001974,2]
[359710251,1746270642503,-450.0,0.0001974,2]
[359710252,1746270642513,-250.0,0.0001974,2]
[359710253,1746270642522,-450.0,0.0001974,2]
[359710254,1746270642531,-450.0,0.0001974,2]
[359710255,1746270642540,-4679.51,0.0001974,2]
[359710256,1746270642551,-450.0,0.0001974,2]
[359710257,1746270642562,-504.43,0.0001974,2]
[359710258,1746270642573,-450.0,0.0001974,2]
[359710259,1746270642583,-450.0,0.0001974,2]
[359710260,1746270642592,-450.0,0.0001974,2]
[359710261,1746270642602,-450.0,0.0001974,2]
[359710262,1746270642611,-450.0,0.0001974,2]
[359710263,1746270642620,-1498.29,0.0001974,2]
[359710264,1746270642630,-22683.04,0.0001974,2]
[359710265,1746270642639,-513.91,0.0001974,2]
[359710266,1746270642648,-586.04,0.0001974,2]
[359710267,1746270642658,-450.0,0.0001974,2]
[359710268,1746270642668,-1530.85,0.0001974,2]
[359710269,1746270642678,-601.47,0.0001974,2]
[359710270,1746270642687,-598.25,0.0001974,2]
[359710271,1746270642696,-450.0,0.0001974,2]
[359710272,1746270642705,-450.0,0.0001974,2]
[359710273,1746270642714,-543.99,0.0001974,2]
[359710274,1746270642724,-545.1,0.0001974,2]
[359710275,1746270642734,-450.0,0.0001974,2]
[359710276,1746270642743,-13958.72,0.0001974,2]
[359710277,1746270642752,-450.0,0.0001974,2]
[359710278,1746270642762,-482.56,0.0001974,2]
[359710280,1746270642772,-450.0,0.0001974,2]
[359710282,1746270642782,-450.0,0.0001974,2]
[359710284,1746270642791,-450.0,0.0001974,2]
[359710286,1746270642802,-450.0,0.0001974,2]
[359710288,1746270642811,-450.0,0.0001974,2]
[359710290,1746270642821,-450.0,0.0001974,2]
[359710293,1746270642831,-450.0,0.0001974,2]
[359710295,1746270642841,-450.0,0.0001974,2]
[359710297,1746270642851,-450.0,0.0001974,2]
[359710299,1746270642860,-468.31,0.0001974,2]
[359710301,1746270642870,-450.0,0.0001974,2]
[359710303,1746270642879,-450.0,0.0001974,2]
[359710305,1746270642889,-450.0,0.0001974,2]
[359710307,1746270642898,-1042.33,0.0001974,2]
[359710309,1746270642908,-450.0,0.0001974,2]
[359710311,1746270642918,-450.0,0.0001974,2]
[359710313,1746270642927,-450.0,0.0001974,2]
[359710315,1746270642937,-450.0,0.0001974,2]
[359710316,1746270642946,-450.0,0.0001974,2]
[359710318,1746270642958,-450.0,0.0001974,2]
[359710319,1746270642967,-562.94038197,0.0001974,2]
[359710320,1746270642976,-620.33,0.0001974,2]
[359710321,1746270642986,-1073.02,0.0001974,2]
[359710322,1746270642996,-450.0,0.0001974,2]
[359710323,1746270643007,-545.05,0.0001974,2]
[359710324,1746270643017,-398.2486717,0.0001974,2]
[359710325,1746270643026,-450.0,0.0001974,2]
[359710327,1746270643036,-671.22,0.0001974,2]
[359710328,1746270643045,-450.0,0.0001974,2]
[359710329,1746270643055,-450.0,0.0001974,2]
[359710330,1746270643065,-450.0,0.0001974,2]
[359710331,1746270643075,-634.89,0.0001974,2]
[359710332,1746270643084,-533.2085114,0.0001974,2]
[359710333,1746270643094,-450.0,0.0001974,2]
[359710334,1746270643103,-456.68072204,0.0001974,2]
[359710335,1746270643112,-450.0,0.0001974,2]
[359710336,1746270643121,-450.0,0.0001974,2]
[359710337,1746270643131,-450.0,0.0001974,2]
[359710338,1746270643140,-248.85891665,0.0001974,2]
[359710339,1746270643150,-500.54,0.0001974,2]
[359710340,1746270643159,-450.0,0.0001974,2]
[359710341,1746270643168,-627.8,0.0001974,2]
[359710342,1746270643178,-597.19,0.0001974,2]
[359710343,1746270643187,-672.94,0.0001974,2]
[359710344,1746270643196,-450.0,0.0001974,2]
[359710345,1746270643205,-594.11,0.0001974,2]
[359710346,1746270643214,-450.0,0.0001974,2]
[359710347,1746270643223,-1497.34,0.0001974,2]
[359710348,1746270643232,-450.0,0.0001974,2]
[359710349,1746270643241,-823.12,0.0001974,2]
[359710350,1746270643251,-450.0,0.0001974,2]
[359710351,1746270643262,-450.0,0.0001974,2]
[359710352,1746270643274,-450.0,0.0001974,2]
[359710353,1746270643284,-463.48,0.0001974,2]
[359710354,1746270643293,-450.0,0.0001974,2]
[359710355,1746270643303,-450.0,0.0001974,2]
[359710356,1746270643313,-450.0,0.0001974,2]
[359710357,1746270643322,-603.31,0.0001974,2]
[359710358,1746270643331,-450.0,0.0001974,2]
[359710359,1746270643341,-450.0,0.0001974,2]
[359710360,1746270643351,-450.0,0.0001974,2]
[359710361,1746270643360,-520.14886938,0.0001974,2]
[359710362,1746270643370,-657.28,0.0001974,2]
[359710363,1746270643380,-450.0,0.0001974,2]
[359710364,1746270643389,-450.0,0.0001974,2]
[359710365,1746270643399,-3566.68,0.0001974,2]
[359710366,1746270643408,-450.0,0.0001974,2]
[359710367,1746270643417,-450.0,0.0001974,2]
[359710368,1746270643426,-450.0,0.0001974,2]
[359710369,1746270643436,-450.0,0.00019741,2]
[359710370,1746270643445,-450.0,0.00019741,2]
[359710371,1746270643454,-450.0,0.00019741,2]
[359710372,1746270643464,-450.0,0.00019741,2]
[359710373,1746270643473,-450.0,0.00019741,2]
[359710374,1746270643482,-450.0,0.00019741,2]
[359710375,1746270643492,-450.0,0.00019741,2]
[359710376,1746270643501,-469.51654345,0.00019741,2]
[359710377,1746270643511,-450.0,0.00019741,2]
[359710378,1746270643520,-450.0,0.00019741,2]
[359710379,1746270643529,-465.99267293,0.00019741,2]
[359710380,1746270643538,-450.0,0.00019741,2]
[359710381,1746270643548,-479.70341354,0.00019741,2]
[359710382,1746270643557,-450.0,0.00019741,2]
[359710383,1746270643566,-450.0,0.00019741,2]
[359710384,1746270643575,-450.0,0.00019741,2]
[359710385,1746270643585,-450.0,0.00019741,2]
[359710386,1746270643594,-450.0,0.00019741,2]
[359710387,1746270643603,-485.93786643,0.00019741,2]
[359710388,1746270643612,-606.09,0.00019741,2]
[359710389,1746270643622,-861.21,0.00019741,2]
[359710390,1746270643632,-450.0,0.00019741,2]
[359710391,1746270643641,-450.0,0.00019741,2]
[359710392,1746270643651,-450.0,0.00019741,2]
[359710393,1746270643660,-551.8,0.00019741,2]
[359710394,1746270643669,-512.11607065,0.00019741,2]
[359710395,1746270643678,-450.0,0.00019741,2]
[359710396,1746270643687,-450.0,0.00019741,2]
[359710397,1746270643696,-489.35576826,0.00019741,2]
[359710398,1746270643705,-450.0,0.00019741,2]
[359710399,1746270643715,-457.99833282,0.00019741,2]
[359710400,1746270643724,-450.0,0.00019741,2]
[359710401,1746270643733,-450.0,0.00019741,2]
[359710402,1746270643743,-1044.44,0.00019741,2]
[359710403,1746270643752,-450.0,0.00019741,2]
[359710404,1746270643761,-450.0,0.00019741,2]
[359710405,1746270643771,-300.0,0.00019741,2]
[359710406,1746270643780,-582.39,0.00019741,2]
[359710407,1746270643789,-460.98697593,0.00019741,2]
[359710408,1746270643800,-450.0,0.00019741,2]
[359710409,1746270643808,-450.0,0.00019741,2]
[359710410,1746270643818,-450.0,0.00019741,2]
[359710411,1746270643827,-713.42,0.00019741,2]
[359710412,1746270643837,-450.0,0.00019741,2]
[359710413,1746270643846,-450.0,0.00019741,2]
[359710414,1746270643855,-450.0,0.00019741,2]
[359710415,1746270643864,-450.0,0.00019741,2]
[359710416,1746270643873,-549.07465899,0.00019741,2]
[359710417,1746270643882,-450.0,0.00019741,2]
[359710418,1746270643891,-450.0,0.00019741,2]
[359710419,1746270643900,-566.40820346,0.00019741,2]
[359710420,1746270643909,-450.0,0.00019741,2]
[359710421,1746270643919,-786.43,0.00019741,2]
[359710422,1746270643927,-450.0,0.00019741,2]
[359710423,1746270643936,-450.0,0.00019741,2]
[359710424,1746270643945,-450.0,0.00019741,2]
[359710425,1746270643955,-450.0,0.00019741,2]
[359710426,1746270643964,-450.0,0.00019741,2]
[359710427,1746270643972,-450.0,0.00019741,2]
[359710428,1746270643982,-450.0,0.00019741,2]